bitfinex/quotes_ETHUSD_20241001
["timestamp","ask_amount","ask_price","bid_price","bid_amount"]
[1727800513264,0.1238935,2513.5,2513.4,14.19633037]
[1727800513836,0.131,2515.0,2514.5,3.97682]
[1727800514080,0.131,2515.0,2514.6,3.97668]
[1727800514254,3.97567,2515.3,2514.6,3.97665]
[1727800514463,4.18492,2515.4,2514.9,3.97627]
[1727800514646,0.2093,2515.4,2514.9,3.97627]
[1727800514858,0.2093,2515.8,2515.0,3.0]
[1727800515084,0.2093,2515.8,2515.3,3.97556]
[1727800515294,0.2093,2515.8,2515.1,3.97583]
[1727800515496,3.97504,2515.7,2515.1,3.97583]
[1727800515661,0.2093,2515.8,2515.3,3.97565]
[1727800516474,0.2093,2515.8,2515.0,4.0408]
[1727800516662,0.2093,2515.8,2514.6,0.397665]
[1727800516663,3.9755,2515.5,2514.7,3.97651]
[1727800516859,3.97548,2515.5,2515.2,1.0206]
[1727800517063,0.1238935,2516.1,2514.6,3.97667]
[1727800517064,3.97472,2515.9,2514.6,3.97667]
[1727800517264,3.97576,2515.3,2514.7,3.0]
[1727800517464,3.976,2515.1,2514.4,4.99764]
[1727800517663,0.2093,2515.2,2514.7,3.97647]
[1727800517867,0.2093,2515.2,2514.7,3.9766]
[1727800518082,23.49306,2515.7,2514.2,5.07241766]
[1727800518083,0.2093,2515.6,2515.0,3.97613]
[1727800518292,0.418402,2515.8,2514.9,0.9808]
[1727800518550,0.418402,2515.8,2515.3,3.97562]
[1727800518750,4.393392,2515.8,2514.9,0.9808]
[1727800519037,4.393392,2515.8,2514.4,3.97696]
[1727800519038,3.97583,2515.2,2514.4,3.97696]
[1727800519203,7.9525,2515.0,2514.4,3.97696]
[1727800519494,7.9525,2515.0,2514.1,0.9808]
[1727800519495,3.97645,2514.8,2514.1,4.95826]
[1727800519692,3.97645,2514.8,2514.0,3.97765]
[1727800519693,3.97645,2514.8,2514.2,3.97728]
[1727800520198,3.97678,2514.6,2514.0,3.97764]
[1727800520357,3.97671,2514.7,2513.8,1.0018]
[1727800520557,3.97671,2514.7,2514.1,7.95494]
[1727800520878,19.518,2514.8,2514.1,3.97747]
[1727800521079,19.518,2514.7,2513.9,3.97778]
[1727800521281,5.92867,2514.6,2513.9,3.97778]
[1727800521492,3.97694,2514.5,2514.0,3.0]
[1727800521708,3.97758,2514.1,2513.5,3.97839]
[1727800522000,19.7273,2514.4,2513.5,3.97851]
[1727800522001,0.2093,2514.4,2513.5,3.97851]
[1727800522171,0.2093,2514.4,2513.9,3.97778]
[1727800522707,19.518,2514.6,2514.3,3.97715]
[1727800522860,19.518,2514.6,2514.1,3.97749]
[1727800522861,19.518,2514.6,2514.1,3.97755]
[1727800523057,19.518,2514.6,2514.3,3.97713]
[1727800523489,19.518,2514.6,2513.5,0.9716]
[1727800523490,21.49073,2514.6,2513.5,0.9716]
[1727800523805,3.97735,2514.3,2513.7,3.97808]
[1727800523957,19.518,2514.6,2514.0,3.97761]
[1727800524166,23.49477,2514.6,2514.0,3.97763]
[1727800524390,19.518,2514.6,2514.0,3.97762]
[1727800524592,3.97696,2514.5,2514.0,3.97762]
[1727800524758,25.865195,2514.6,2514.0,7.95525]
[1727800525098,23.49488,2514.6,2514.1,3.97756]
[1727800525259,20.068,2514.5,2513.3,3.97873]
[1727800525593,20.068,2514.5,2512.2,2.0]
[1727800525594,3.97862,2513.5,2513.0,3.97928]
[1727800525792,0.397862,2513.4,2512.8,3.97953]
[1727800525995,3.9786,2513.5,2512.9,3.97934]
[1727800526297,4.18759,2513.7,2513.1,3.97906]
[1727800526565,3.97853,2513.5,2512.9,3.97935]
[1727800526726,3.97853,2513.5,2512.3,1.0117]
[1727800526727,3.97907,2513.2,2512.6,3.97985]
[1727800526924,19.518,2513.8,2512.5,3.98007]
[1727800526925,4.52852,2513.5,2512.5,3.98007]
[1727800527207,0.2093,2512.8,2512.3,3.98033]
[1727800527614,19.518,2513.3,2512.5,3.98006]
[1727800527615,23.49687,2513.3,2512.5,3.98006]
[1727800527768,3.97923,2513.1,2512.5,3.98001]
[1727800527972,3.97923,2513.1,2512.5,7.96002]
[1727800528210,0.2093,2513.2,2512.6,3.97992]
[1727800528512,0.2094,2513.0,2512.1,3.98063]
[1727800528718,3.98011,2512.5,2511.9,3.98095]
[1727800528879,3.98012,2512.5,2511.9,3.98095]
[1727800529401,3.98035,2512.4,2511.3,1.0182]
[1727800529586,3.98035,2512.4,2511.7,3.98125]
[1727800529587,0.2094,2512.3,2511.7,3.98125]
[1727800529769,0.2094,2512.3,2511.5,3.98158]
[1727800529971,0.2094,2512.3,2511.0,3.98243]
[1727800529972,0.2094,2512.3,2511.8,3.98116]
[1727800530316,19.7274,2512.7,2512.0,3.98074]
[1727800530499,19.7274,2512.7,2512.2,3.98044]
[1727800530500,0.2094,2512.7,2512.2,3.98044]
[1727800530698,0.2094,2512.7,2512.4,3.98015]
[1727800531208,0.2094,2512.7,2512.2,3.98047]
[1727800531407,3.97932,2513.0,2512.3,7.96063]
[1727800531611,3.97972,2512.8,2512.2,3.98051]
[1727800531821,3.97953,2512.9,2512.3,7.96072]
[1727800531992,0.0733902,2512.8,2512.1,7.96128]
[1727800532199,3.97994,2512.6,2511.9,3.98095]
[1727800532506,0.07193803,2512.5,2511.9,3.98096]
[1727800532709,0.07193803,2512.5,2511.9,7.96191]
[1727800533008,0.07193803,2512.5,2512.1,3.98057]
[1727800533207,0.07193803,2512.5,2510.4,1.0298]
[1727800533208,0.7594,2512.4,2510.4,1.0298]
[1727800533407,4.19006,2512.2,2511.6,3.98147]
[1727800533608,0.07148581,2512.1,2511.6,3.98142]
[1727800533842,3.98098,2512.0,2511.4,3.98175]
[1727800534101,3.9812,2511.8,2511.1,3.98223]
[1727800534262,3.9812,2511.8,2511.2,3.98215]
[1727800534553,0.0709127,2511.7,2511.1,3.9822]
[1727800534853,0.2094,2511.9,2510.8,0.07935512]
[1727800535145,0.07153341,2511.8,2510.9,3.9826]
[1727800535321,0.07153341,2511.8,2511.7,3.98136]
[1727800535907,0.2094,2512.3,2512.0,3.98086]
[1727800536345,0.06937422,2512.2,2512.0,3.98079]
[1727800536652,0.2094,2512.8,2512.6,3.97992]
[1727800536855,0.2094,2512.8,2512.4,3.98015]
[1727800536856,0.06993087,2512.7,2512.4,3.98015]
[1727800537009,0.2094,2512.8,2512.2,3.98046]
[1727800537209,3.97981,2512.7,2512.1,3.98065]
[1727800537519,0.2094,2512.8,2512.2,3.98054]
[1727800537520,0.06691461,2512.6,2512.2,3.98054]
[1727800537725,0.06691461,2512.6,2512.4,3.98022]
[1727800537952,0.2094,2512.8,2512.3,7.96064]
[1727800538157,0.06483631,2512.5,2512.1,3.98062]
[1727800538366,4.18912,2512.8,2512.2,3.98055]
[1727800538533,0.06247473,2512.4,2512.2,3.98055]
[1727800538735,4.18912,2512.8,2512.2,3.98055]
[1727800539073,0.2094,2512.8,2512.0,3.98084]
[1727800539280,19.57847352,2512.7,2512.6,3.97994]
[1727800539596,0.06047352,2512.7,2512.6,3.97994]
[1727800539926,19.518,2513.1,2512.9,3.97942]
[1727800540131,0.2094,2513.2,2512.9,3.97942]
[1727800540132,19.7274,2513.2,2513.1,3.97914]
[1727800540380,19.7274,2513.2,2512.7,3.97972]
[1727800540559,19.7274,2513.2,2512.8,3.9796]
[1727800540761,19.7274,2513.2,2512.5,3.98008]
[1727800540967,19.7274,2513.2,2513.0,3.97921]
[1727800541500,9.05355927,2514.1,2513.0,3.97921]
[1727800541501,0.2094,2514.0,2513.9,3.97788]
[1727800541646,3.97718,2514.4,2513.6,3.0]
[1727800541647,19.518,2514.3,2513.6,3.0]
[1727800541971,19.518,2514.3,2513.8,3.97802]
[1727800542283,19.518,2514.3,2513.4,4.98183]
[1727800542284,0.2094,2514.4,2514.0,3.97768]
[1727800542444,0.2094,2514.4,2514.0,3.97763]
[1727800542959,0.2094,2514.4,2514.0,7.95526]
[1727800542960,0.05222803,2514.3,2514.0,7.95526]
[1727800543475,0.05222803,2514.3,2514.0,3.97763]
[1727800543843,0.05222803,2514.3,2513.9,3.0]
[1727800544149,0.05222803,2514.3,2514.2,3.9774]
[1727800544349,0.05222803,2514.3,2514.2,3.0]
[1727800544656,0.05265762,2514.3,2514.2,3.0]
[1727800544856,23.49466,2514.7,2514.2,6.97737]
[1727800545179,19.57093295,2514.6,2514.2,3.0]
[1727800545389,19.57093295,2514.6,2514.3,3.9772]
[1727800545560,19.57093295,2514.6,2514.5,3.97693]
[1727800545761,19.57093295,2514.6,2514.2,3.97727]
[1727800545967,19.57093295,2514.6,2514.3,3.97722]
[1727800546351,19.57093295,2514.6,2513.0,3.97926]
[1727800546352,2.40767224,2514.6,2513.0,3.97926]
[1727800546549,3.97725,2514.3,2513.7,3.97808]
[1727800546790,3.97746,2514.2,2513.7,3.97808]
[1727800546964,3.97746,2514.2,2513.5,3.9784]
[1727800546965,0.05280478,2514.2,2513.5,3.9784]
[1727800547176,0.05280478,2514.2,2513.1,0.9669]
[1727800547177,3.97815,2513.8,2513.1,3.97903]
[1727800547497,0.26212267,2513.7,2513.4,3.97866]
[1727800547648,0.26212267,2513.7,2513.5,3.97847]
[1727800547849,0.05272267,2513.7,2513.4,3.97866]
[1727800548195,19.518,2513.8,2513.3,3.97867]
[1727800548354,0.05247092,2513.6,2513.2,7.95776]
[1727800548717,0.05269396,2513.5,2513.0,3.97916]
[1727800548996,4.03132396,2513.5,2512.8,3.97949]
[1727800549207,23.49629,2513.7,2513.1,3.97908]
[1727800549208,19.518,2513.7,2513.1,3.97908]
[1727800549501,23.49626,2513.7,2513.1,3.97906]
[1727800549791,0.05293504,2513.6,2513.2,0.9605]
[1727800549999,0.05293504,2513.6,2513.5,3.97851]
[1727800550289,3.97693,2514.5,2513.5,3.97844]
[1727800550290,3.97751,2514.2,2513.5,3.97844]
[1727800550500,0.2094,2514.0,2513.1,3.97904]
[1727800550664,0.2094,2514.0,2513.2,0.07958148]
[1727800550665,0.05127024,2513.9,2513.2,0.07958148]
[1727800551000,0.05127024,2513.9,2513.4,3.97864]
[1727800551208,4.02916024,2513.9,2513.4,3.97864]
[1727800551493,0.05127024,2513.9,2513.5,5.0086]
[1727800551699,19.518,2514.4,2514.0,3.9776]
[1727800551999,0.0506843,2514.3,2514.0,3.9776]
[1727800552302,0.0506843,2514.3,2514.1,3.97756]
[1727800552597,0.0506843,2514.3,2514.0,3.9776]
[1727800552791,0.0506843,2514.3,2514.1,3.97754]
[1727800553032,0.0506843,2514.3,2514.2,3.9774]
[1727800553317,0.0506843,2514.3,2513.7,6.97817]
[1727800553318,3.97734,2514.3,2513.7,6.9781]
[1727800553538,23.49353,2515.4,2513.7,6.9781]
[1727800553539,3.97575,2515.3,2514.6,3.97663]
[1727800553667,3.97575,2515.3,2514.3,3.97715]
[1727800553668,3.97646,2514.8,2514.3,3.97715]
[1727800554099,7.95251,2515.0,2514.3,7.95426]
[1727800554300,0.2094,2514.9,2513.9,3.0]
[1727800554611,3.97737,2514.3,2513.7,6.97811]
[1727800554825,7.95472,2514.3,2513.7,6.97811]
[1727800555104,3.97735,2514.3,2513.7,7.95622]
[1727800555300,3.97735,2514.3,2513.7,7.9562]
[1727800555665,3.97735,2514.3,2513.7,3.97809]
[1727800555865,3.97753,2514.2,2513.6,3.97827]
[1727800556066,3.97778,2514.0,2512.7,0.9555]
[1727800556269,3.97761,2514.1,2513.4,3.97857]
[1727800556567,8.4535245,2514.1,2513.5,3.9784]
[1727800557002,4.4758545,2514.1,2513.5,3.9784]
[1727800557210,4.4758545,2514.1,2513.4,3.97856]
[1727800557577,0.4982445,2514.1,2513.2,3.9789]
[1727800557778,0.4982445,2514.1,2512.8,3.97958]
[1727800557779,3.97798,2513.9,2512.8,3.97957]
[1727800557983,8.40359245,2513.9,2513.3,3.97874]
[1727800558170,0.05036878,2513.8,2513.3,3.97874]
[1727800558371,0.05036878,2513.8,2512.8,0.891493]
[1727800558572,0.05036878,2513.8,2513.7,3.97819]
[1727800558813,0.2094,2514.2,2513.9,3.97787]
[1727800559026,19.518,2514.4,2513.7,3.97805]
[1727800559027,3.97733,2514.3,2513.7,3.97805]
[1727800559178,3.97731,2514.3,2513.5,3.97841]
[1727800559500,19.518,2514.4,2513.4,4.96622]
[1727800559705,19.518,2514.3,2513.8,3.97796]
[1727800559874,3.97741,2514.2,2513.6,7.95649]
[1727800560222,19.518,2514.3,2513.8,3.9779]
[1727800560722,19.518,2514.3,2513.3,3.97875]
[1727800560723,3.97816,2513.8,2513.3,3.97875]
[1727800560882,19.518,2513.7,2513.5,3.97848]
[1727800561219,19.518,2513.7,2513.6,3.97835]
[1727800561738,19.518,2514.1,2513.1,3.97906]
[1727800561878,3.97782,2514.0,2513.4,3.97855]
[1727800562079,3.97782,2514.0,2513.2,6.97889]
[1727800562080,23.49601,2513.9,2513.2,6.97889]
[1727800562350,3.97821,2513.7,2513.3,3.97883]
[1727800562485,0.2096,2513.8,2513.3,7.95758]
[1727800562686,3.97821,2513.7,2513.1,3.97903]
[1727800563033,19.518,2513.9,2513.6,3.97827]
[1727800563319,19.518,2514.2,2513.8,3.97794]
[1727800563525,19.518,2514.2,2514.1,3.97756]
[1727800563676,3.97641,2514.9,2513.9,3.97775]
[1727800563677,19.518,2514.4,2513.9,3.97775]
[1727800563881,19.518,2514.4,2514.3,3.97725]
[1727800564396,0.2096,2515.2,2514.6,3.97677]
[1727800564596,0.2096,2515.2,2514.8,3.97635]
[1727800564902,19.478,2515.4,2514.9,3.97621]
[1727800565121,0.2096,2515.6,2515.1,3.97589]
[1727800565335,0.2096,2516.0,2515.3,3.97564]
[1727800565533,0.2096,2516.0,2515.5,3.9752]
[1727800565819,3.97513,2515.7,2515.1,3.97594]
[1727800566003,3.975,2515.8,2515.1,3.97596]
[1727800566416,3.97514,2515.7,2515.1,3.97596]
[1727800566993,3.97514,2515.7,2514.9,3.97623]
[1727800567232,0.397514,2515.7,2514.9,3.0]
[1727800567519,19.478,2515.6,2514.6,3.97663]
[1727800567728,0.1238935,2516.1,2515.5,3.97534]
[1727800567951,0.1238935,2516.1,2515.7,3.97501]
[1727800568153,0.1238935,2516.1,2515.2,3.0]
[1727800568442,0.1238935,2516.1,2515.9,3.97456]
[1727800568602,0.1238935,2516.1,2515.3,1.0138]
[1727800568603,3.97458,2516.0,2515.3,1.0138]
[1727800568803,0.1238935,2516.1,2515.2,3.0]
[1727800568804,3.9753,2515.6,2515.2,3.0]
[1727800569003,9.17433277,2516.1,2515.2,3.0]
[1727800569004,0.2096,2515.8,2515.2,3.0]
[1727800569305,0.3334935,2516.1,2515.2,3.97578]
[1727800569499,3.97504,2515.7,2515.2,3.697578]
[1727800569703,0.3334935,2516.1,2514.8,3.0]
[1727800569704,3.97561,2515.4,2514.8,3.0]
[1727800570004,3.97523,2515.6,2515.1,3.0]
[1727800570204,3.97552,2515.4,2514.6,3.97667]
[1727800570401,3.97496,2515.8,2515.0,3.0]
[1727800570605,19.478,2516.0,2514.5,9.09456927]
[1727800570606,23.45271,2516.0,2514.5,9.09456927]
[1727800570852,0.3334935,2516.1,2515.2,1.0051]
[1727800571057,0.3334935,2516.1,2515.4,3.97538]
[1727800571211,3.97507,2515.7,2515.3,3.0]
[1727800571406,3.97507,2515.7,2515.0,3.97607]
[1727800571407,7.95026,2515.7,2515.1,3.0]
[1727800571609,3.97507,2515.7,2515.1,3.0]
[1727800571810,3.97539,2515.5,2514.9,4.0051]
[1727800572108,3.97539,2515.5,2515.0,3.0]
[1727800572109,3.97549,2515.5,2515.0,3.0]
[1727800572344,3.97549,2515.5,2514.9,3.0]
[1727800572531,19.478,2515.6,2514.9,3.0]
[1727800572729,19.478,2515.6,2515.0,3.97604]
[1727800573052,3.97568,2515.3,2514.7,3.0]
[1727800573255,3.97662,2514.7,2514.2,3.97726]
[1727800573455,19.478,2514.6,2514.2,3.97737]
[1727800573749,19.478,2514.5,2513.6,3.97824]
[1727800573952,3.97733,2514.3,2513.2,1.0336]
[1727800574249,19.52190998,2514.4,2513.5,3.97842]
[1727800574407,0.04363134,2514.2,2513.7,3.97817]
[1727800574605,0.04363134,2514.2,2513.2,1.0336]
[1727800574606,3.97825,2513.7,2513.2,1.0336]
[1727800574854,3.97825,2513.7,2513.2,3.97896]
[1727800575059,0.04337289,2513.6,2513.3,3.97868]
[1727800575353,19.478,2514.0,2513.6,3.97833]
[1727800575534,0.0428458,2513.5,2513.2,3.97884]
[1727800575852,19.478,2514.0,2512.8,0.9764]
[1727800575853,19.478,2514.0,2513.3,4.0582933]
[1727800576152,19.478,2514.0,2513.5,3.97842]
[1727800576355,19.478,2514.0,2513.8,3.97789]
[1727800576522,4.18682,2514.4,2513.7,3.97819]
[1727800576723,4.18682,2514.4,2513.8,3.97803]
[1727800576724,3.97734,2514.3,2513.8,3.97803]
[1727800577245,0.2096,2514.4,2513.7,3.9781]
[1727800577545,19.478,2514.6,2513.7,3.9781]
[1727800577546,19.478,2514.6,2513.9,3.97774]
[1727800577774,3.9767,2514.7,2514.1,3.97756]
[1727800577916,0.2096,2514.8,2514.1,3.97756]
[1727800577917,0.2096,2514.8,2514.1,3.97747]
[1727800578111,0.2096,2514.8,2513.9,6.97775]
[1727800578112,3.97686,2514.6,2513.9,6.97775]
[1727800578420,3.97686,2514.6,2514.1,3.0]
[1727800578628,0.2096,2514.8,2514.1,7.95488]
[1727800578862,0.2096,2514.8,2513.9,6.97783]
[1727800579184,2.575998,2514.8,2514.0,3.0]
[1727800579322,2.575998,2514.8,2513.1,1.0221]
[1727800579323,0.2096,2514.1,2513.1,1.0221]
[1727800579528,0.2096,2514.5,2513.1,1.0221]
[1727800579723,0.2096,2514.5,2513.8,3.97795]
[1727800580052,19.478,2514.9,2514.6,3.97675]
[1727800580258,19.478,2515.3,2514.8,3.97634]
[1727800580553,19.478,2515.3,2514.6,1.0221]
[1727800580755,19.478,2515.3,2514.7,3.97659]
[1727800580912,19.478,2515.3,2514.8,4.05595833]
[1727800581113,19.478,2515.3,2514.8,4.05590833]
[1727800581314,19.478,2515.8,2514.9,0.40559083]
[1727800581525,19.478,2515.8,2515.6,3.9751]
[1727800581748,23.5763135,2516.1,2515.5,3.9752]
[1727800582063,23.5763135,2516.1,2515.4,3.97551]
[1727800582064,19.6018935,2516.1,2515.4,3.97551]
[1727800582364,0.1238935,2516.1,2516.0,3.97456]
[1727800582511,0.1238935,2516.1,2516.0,4.02976942]
[1727800583476,0.1238935,2516.1,2516.0,3.97456]
[1727800584124,0.1592476,2516.1,2516.0,3.97456]
[1727800584566,0.1592476,2516.1,2516.0,7.769482]
[1727800584930,0.1238935,2516.1,2516.0,7.769482]
[1727800585729,0.15904609,2516.1,2516.0,7.769482]
[1727800586737,0.15904609,2516.1,2516.0,8.776982]
[1727800587133,0.15904609,2516.1,2516.0,14.39586429]
[1727800587134,0.1238935,2516.1,2516.0,14.39586429]
[1727800587332,0.1238935,2516.1,2516.0,8.776982]
[1727800587578,0.1238935,2516.1,2516.0,7.98206]
[1727800588233,0.1238935,2516.1,2515.0,0.13715119]
[1727800588234,0.1238935,2516.1,2515.6,1.0512]
[1727800588438,0.1238935,2516.1,2515.1,3.97592]
[1727800588439,3.97481,2515.9,2515.3,7.95114]
[1727800588771,0.1238935,2516.1,2515.5,3.97534]
[1727800588772,0.03495182,2515.8,2515.5,3.97534]
[1727800589068,4.00991182,2515.8,2515.3,3.97556]
[1727800589242,0.2097,2515.9,2515.1,5.02709]
[1727800589243,0.2097,2515.9,2515.5,7.95059]
[1727800589447,4.0983835,2516.1,2515.6,3.97519]
[1727800589448,0.1238935,2516.1,2515.6,3.97519]
[1727800589858,0.1238935,2516.1,2515.3,3.97559]
[1727800589859,23.45257,2516.0,2515.3,3.97564]
[1727800590077,19.478,2515.9,2514.9,3.97617]
[1727800590295,0.55,2515.6,2514.7,3.9765]
[1727800590500,0.55,2515.6,2513.8,0.3987]
[1727800590501,3.97601,2515.1,2514.4,3.97708]
[1727800590660,3.97601,2515.1,2514.4,3.977]
[1727800590661,3.97632,2514.9,2514.4,3.977]
[1727800590863,3.97671,2514.7,2514.0,3.97762]
[1727800591213,0.79873261,2514.9,2514.1,7.95512]
[1727800591214,4.77506261,2514.9,2514.1,7.95512]
[1727800591408,4.77506261,2514.9,2514.3,3.97723]
[1727800591589,4.77506261,2514.9,2514.3,3.97714]
[1727800591761,4.77506261,2514.9,2513.9,1.0007]
[1727800591762,3.97687,2514.6,2513.9,3.97781]
[1727800592106,4.77510261,2514.9,2514.2,3.97738]
[1727800592401,0.79873261,2514.9,2514.4,3.97695]
[1727800592563,3.97663,2514.7,2514.1,3.97746]
[1727800592760,3.97663,2514.7,2514.1,3.0]
[1727800593297,3.97695,2514.5,2513.9,6.97785]
[1727800593462,3.97695,2514.5,2513.9,3.0]
[1727800593463,3.97706,2514.5,2513.9,3.0]
[1727800593659,0.397706,2514.5,2513.6,5.02682]
[1727800593857,0.79873261,2514.9,2513.2,3.97896]
[1727800593858,3.97805,2513.8,2513.2,3.97896]
[1727800594055,3.97805,2513.8,2513.0,3.97919]
[1727800594304,0.2097,2513.9,2512.7,0.977]
[1727800594507,0.2097,2513.9,2513.3,3.9788]
[1727800594864,0.2097,2513.9,2513.3,3.97877]
[1727800595194,0.2097,2513.9,2512.7,0.977]
[1727800595195,3.97806,2513.8,2513.2,3.97898]
[1727800595397,2.576252,2513.9,2513.1,3.97903]
[1727800595562,2.576252,2513.9,2512.7,4.95668]
[1727800595563,2.576252,2513.9,2513.3,3.97872]
[1727800595974,2.576252,2513.9,2513.2,3.9789]
[1727800596207,0.2097,2513.9,2512.8,3.97954]
[1727800596391,0.2097,2513.9,2513.4,3.97854]
[1727800596601,19.478,2514.0,2513.7,3.97811]
[1727800596761,3.97766,2514.1,2513.4,3.97852]
[1727800597166,0.2097,2514.2,2513.1,3.0]
[1727800597403,0.2097,2514.2,2513.2,0.697926]
[1727800597663,0.2097,2514.2,2512.7,0.977]
[1727800597664,3.97848,2513.6,2512.7,0.977]
[1727800597897,0.55,2514.1,2513.1,3.97904]
[1727800598064,3.97805,2513.8,2513.1,3.97902]
[1727800598275,4.18806,2513.6,2513.0,3.97929]
[1727800598606,0.2097,2513.6,2513.1,3.97908]
[1727800598807,0.2097,2513.6,2512.7,0.977]
[1727800598808,0.2097,2513.6,2512.9,3.97941]
[1727800598963,4.1882,2513.6,2513.0,3.97929]
[1727800599165,5.004833,2513.6,2513.0,3.97929]
[1727800599501,0.2097,2513.6,2513.1,0.07958103]
[1727800599673,0.2097,2513.6,2513.1,3.97901]
[1727800599874,0.2097,2513.6,2513.2,3.97891]
[1727800600201,0.2097,2513.6,2513.3,3.97873]
[1727800600374,23.45589,2513.9,2513.4,3.97856]
[1727800600574,23.45589,2513.9,2513.0,3.0]
[1727800600774,3.97806,2513.8,2513.1,3.97907]
[1727800601013,3.97855,2513.5,2512.9,3.97936]
[1727800601790,20.028,2513.8,2512.7,3.97972]
[1727800601791,3.979,2513.2,2512.7,3.97972]
[1727800601940,3.97797,2513.9,2513.2,3.97888]
[1727800602147,23.45597,2513.9,2513.2,3.97888]
[1727800602303,27.47058319,2513.9,2513.3,3.97873]
[1727800602502,27.47058319,2513.9,2513.4,3.97866]
[1727800602706,19.6877,2514.0,2513.6,3.97834]
[1727800602924,19.6877,2514.0,2513.1,5.00161]
[1727800602925,19.6877,2514.0,2513.1,1.0225]
[1727800603142,19.6877,2514.0,2513.5,3.97849]
[1727800603347,0.2097,2514.0,2513.5,3.97838]
[1727800603494,0.2097,2514.0,2513.3,3.97875]
[1727800603495,3.97797,2513.9,2513.3,3.97875]
[1727800603838,3.97829,2513.7,2513.1,3.97906]
[1727800604398,3.97829,2513.7,2512.8,4.0225]
[1727800604399,0.816532,2513.9,2513.4,3.97858]
[1727800604600,3.97814,2513.8,2513.2,7.95772]
[1727800604799,3.97814,2513.8,2513.0,3.97919]
[1727800604999,0.2097,2514.0,2513.1,3.97912]
[1727800605000,3.97819,2513.7,2513.1,3.97912]
[1727800605209,0.2097,2514.0,2513.4,3.97867]
[1727800605446,3.97844,2513.6,2513.1,3.97913]
[1727800605742,3.97862,2513.5,2512.9,3.97936]
[1727800606052,3.97844,2513.6,2512.7,3.0]
[1727800606199,3.97845,2513.6,2512.9,3.97942]
[1727800606404,0.55,2513.9,2512.9,7.95873]
[1727800606405,3.97828,2513.7,2512.9,7.95873]
[1727800606703,3.97939,2513.0,2512.4,3.98015]
[1727800606902,3.9798,2512.7,2512.2,3.98047]
[1727800607139,3.97839,2513.6,2512.3,3.98032]
[1727800607140,4.18942,2512.8,2512.3,3.98032]
[1727800607338,0.2097,2512.8,2512.4,3.98017]
[1727800607744,0.2097,2512.8,2511.7,0.9911]
[1727800607745,0.2097,2512.8,2511.9,3.98102]
[1727800608043,0.2097,2512.8,2511.7,0.9911]
[1727800608044,4.18941,2512.8,2511.7,0.9911]
[1727800608211,0.2097,2512.8,2511.8,0.52021217]
[1727800608417,0.2097,2512.8,2512.1,3.98073]
[1727800608418,4.18941,2512.8,2512.1,3.98073]
[1727800608627,3.98018,2512.5,2512.0,3.98086]
[1727800608826,3.97983,2512.7,2511.9,3.98101]
[1727800609033,3.97995,2512.6,2511.9,3.98101]
[1727800609346,0.2097,2512.8,2512.1,3.98063]
[1727800609502,0.2097,2512.8,2512.5,3.98008]
[1727800609701,0.2097,2512.8,2512.4,7.96037]
[1727800609927,0.2097,2512.8,2512.4,3.98015]
[1727800610100,0.2097,2512.8,2512.3,3.98038]
[1727800610318,0.2097,2512.8,2512.4,3.98024]
[1727800610539,0.2097,2512.8,2512.0,6.98078]
[1727800610717,4.18941,2512.8,2512.2,3.98053]
[1727800610905,4.18941,2512.8,2512.3,3.9804]
[1727800610906,6.556151,2512.8,2512.3,3.9804]
[1727800611106,0.2097,2512.8,2512.6,3.97985]
[1727800611417,0.2097,2512.8,2512.1,3.98062]
[1727800611418,4.1894,2512.8,2512.1,3.98062]
[1727800611618,4.1894,2512.8,2511.9,3.0]
[1727800611619,3.98019,2512.5,2511.9,10.96187]
[1727800611946,3.97994,2512.6,2511.9,6.98091]
[1727800611947,3.98026,2512.4,2511.9,6.98091]
[1727800612502,19.478,2512.3,2511.9,3.98101]
[1727800612803,7.5897,2512.8,2512.4,3.98016]
[1727800612804,19.478,2512.7,2512.4,3.98016]
[1727800613350,19.478,2512.7,2512.1,1.0241]
[1727800613351,23.45786,2512.7,2512.1,3.98063]
[1727800613639,23.45786,2512.7,2511.7,3.98126]
[1727800613640,19.478,2512.7,2512.0,3.98075]
[1727800613947,1.96877,2512.6,2512.1,3.98065]
[1727800614145,1.96877,2512.6,2512.2,3.98054]
[1727800614347,23.45778,2512.7,2512.4,3.98024]
[1727800614348,19.478,2512.7,2512.4,3.98024]
[1727800614507,19.478,2512.7,2512.4,3.98016]
[1727800614710,19.478,2512.7,2512.6,3.97994]
[1727800614911,0.2097,2512.8,2511.9,3.981]
[1727800615244,3.9801,2512.5,2511.9,3.981]
[1727800615637,19.478,2512.4,2511.7,3.98127]
[1727800615950,3.9805,2512.3,2511.6,3.98142]
[1727800616160,3.98057,2512.2,2511.6,3.98142]
[1727800616448,19.478,2512.1,2511.6,3.98142]
[1727800616654,19.478,2512.1,2511.7,3.98126]
[1727800616820,21.823858,2512.0,2511.3,3.982]
[1727800617009,19.478,2511.9,2511.3,3.98192]
[1727800617209,0.2097,2511.8,2511.3,3.98186]
[1727800617446,4.19091,2511.8,2511.3,3.98186]
[1727800617768,0.2097,2511.8,2511.3,3.98186]
[1727800618105,3.98137,2511.7,2511.1,3.98216]
[1727800618312,2.8111688,2511.8,2511.1,3.98216]
[1727800618620,6.7923788,2511.8,2511.3,3.98191]
[1727800618818,0.2097,2511.8,2511.3,3.98191]
[1727800619034,19.478,2511.7,2511.3,3.98191]
[1727800619207,19.478,2511.7,2510.7,1.0035]